Cogmind - Beta 15 @@@ ROGUE MODE // 2025.09.19 @ 15:11:17 Player: Petvaria Result: Self-destructed Performance ------------- Evolutions (7) 3500 Regions Visited (12) 2400 Robots Destroyed (76) 380 Value Destroyed (3561) 3561 Prototype IDs (8) 160 Alien Tech Used (0) 0 Bonus (2236) 2236 TOTAL SCORE: 12237 Bonus ------- Follower Combat Kills 1436 Registered with UFD 300 Scanned by Researcher 500 Cogmind --------- Core Integrity 231/1300 Matter 221/300 Energy 692/700 System Corruption 33% Temperature Cool (0) Movement Core (750) Ox14 Location -3/Quarantine Parts ------- > --- POWER (2) -------- (None) > --- PROPULSION (6) --- (None) > --- UTILITY (11) ----- High-capacity Storage Unit Experimental Energy Well Advanced Sensor Array Advanced Signal Interpreter Advanced Signal Interpreter Improved Hacking Suite Improved System Shield Experimental System Shield > --- WEAPON (2) ------- (None) > --- INVENTORY (20) --- Antimatter Reactor Antimatter Reactor Flexi-carbon Leg Medium Armored Exoskeleton Wheel Q-thruster Q-thruster Q-thruster Advanced Cryofiber Web Deep Structural Scanner Stasis Canceller Improved Weapon Shielding Tesla Rifle Improved Datajack Improved Plasma Cutter CPS Tube (2) Peak State ------------ > --- POWER ------------ Light Antimatter Reactor Micro Antimatter Reactor > --- PROPULSION ------- Flexi-carbon Leg Flexi-carbon Leg Flexi-carbon Leg Flexi-carbon Leg Myomer Leg > --- UTILITY ---------- Advanced Cryofiber Web High-capacity Storage Unit Experimental Energy Well Advanced Sensor Array Advanced Signal Interpreter Advanced Signal Interpreter Improved Medium Armor Plating Improved Hacking Suite Improved System Shield Experimental System Shield Amulet of Y3-NDR > --- WEAPON ----------- Companion Sword > --- INVENTORY -------- Improved Deuterium Engine Reinforced Fission Core Flexi-carbon Leg Flexi-carbon Leg Flexi-carbon Leg Medium Armored Exoskeleton Wheel Q-thruster Q-thruster Q-thruster Advanced Cryofiber Web Deep Structural Scanner Stasis Canceller Improved Weapon Shielding Tesla Rifle Improved Datajack Improved Plasma Cutter CPS Tube [Rating: 120] Favorites ----------- Power Neutrino Core Engine Light Ion Engine Power Core Neutrino Core Reactor Light Antimatter Reactor Propulsion Flexi-carbon Leg Treads Light Treads Leg Flexi-carbon Leg Wheel Compact Wheel Utility High-capacity Storage Unit Device Remote Force Field Storage High-capacity Storage Unit Processor Improved Melee Analysis Suite Hackware Improved Hacking Suite Protection Improved Medium Armor Plating Weapon Companion Sword Energy Gun Medium Laser Ballistic Gun Heavy Assault Rifle Special Weapon Improved Plasma Cutter Impact Weapon Hammer Slashing Weapon Companion Sword Build | -11 -10 -10 -7 -7 -5 -5 -5 -4 -4 -4 -3 -3 ------- Run | Yrd Mat Sub Rec Scr Fac Ext Cet Fac Upp Upp Res Qua Slots Evolved 14 | . . . . . 10 . . 2 . . 2 . Power 1 | . . . . . . . . 1 . . . . Propulsion 4 | . . . . . 3 . . . . . 1 . Utility 9 | . . . . . 7 . . 1 . . 1 . Weapon . | . . . . . . . . . . . . . Parts Attached 119 | 5 5 2 1 4 24 29 2 20 6 3 15 3 Power 15 | 1 . . 1 . 3 3 . 4 . 1 2 . Engine 5 | 1 . . 1 . 3 . . . . . . . Core 6 | . . . . . . 3 . 3 . . . . Reactor 4 | . . . . . . . . 1 . 1 2 . Propulsion 50 | 2 1 . . 2 9 17 1 4 3 1 8 2 Treads 9 | 1 1 . . . 2 1 . . 2 . 2 . Leg 34 | . . . . . 6 14 1 4 1 . 6 2 Wheel 7 | 1 . . . 2 1 2 . . . 1 . . Hover . | . . . . . . . . . . . . . Flight . | . . . . . . . . . . . . . Utility 44 | 1 1 1 . 1 9 8 1 12 3 1 5 1 Device 17 | . . 1 . . . 3 . 8 2 1 2 . Storage 3 | 1 1 . . . . . . . . . . 1 Processor 5 | . . . . . 3 . . 1 . . 1 . Hackware 6 | . . . . . 3 1 . . 1 . 1 . Protection 13 | . . . . 1 3 4 1 3 . . 1 . Artifact . | . . . . . . . . . . . . . Weapon 10 | 1 3 1 . 1 3 1 . . . . . . Energy Gun 4 | 1 . 1 . . 2 . . . . . . . Energy Cannon . | . . . . . . . . . . . . . Ballistic Gun 3 | . 2 . . 1 . . . . . . . . Ballistic Cannon . | . . . . . . . . . . . . . Launcher . | . . . . . . . . . . . . . Special Weapon 1 | . . . . . . 1 . . . . . . Impact Weapon 1 | . 1 . . . . . . . . . . . Slashing Weapon 1 | . . . . . 1 . . . . . . . Piercing Weapon . | . . . . . . . . . . . . . Special Melee Weapon . | . . . . . . . . . . . . . Unidentified Prototypes 7 | . . 1 . . 1 . 1 1 . 1 1 1 Corrupted Parts 5 | . . . . . . . . . . . 3 2 System Corruption 33 | . . . . . . . . . . . 18 15 Parts Lost 90 | . 1 1 . . 24 10 4 22 5 . 10 13 Power 13 | . . 1 . . 3 1 . 4 . . 2 2 Propulsion 41 | . . . . . 11 5 2 6 4 . 6 7 Utility 30 | . . . . . 6 4 2 12 1 . 2 3 Weapon 6 | . 1 . . . 4 . . . . . . 1 Highest Loss Streak 13 | . 1 1 . . 13 3 4 6 4 . 10 11 To Critical Strikes 3 | . . . . . . . 1 . . . . 2 Average Backups 15 | 5 8 8 9 15 16 16 16 17 17 17 16 17 Power 3 | 1 1 2 1 2 2 3 4 3 4 3 2 1 Propulsion 4 | 2 2 2 2 5 4 5 4 2 2 3 4 7 Utility 4 | . . . 1 2 6 5 5 7 6 6 5 4 Weapon 1 | 1 4 4 5 4 1 . . . . 1 1 1 Tool/Special . | . . . . . . . . . . . . . Unused Backups 21 | . . . . 1 1 2 . 2 1 . . 14 Power 8 | . . . . 1 1 1 . 1 . . . 4 Propulsion 7 | . . . . . . 1 . . 1 . . 5 Utility 3 | . . . . . . . . 1 . . . 2 Weapon 1 | . . . . . . . . . . . . 1 Tool/Special 2 | . . . . . . . . . . . . 2 Average Slot Usage (%) 74 | . 84 80 84 89 56 72 70 73 61 57 63 83 Engine 4 | . 14 9 13 14 4 . . . . . . . Core 3 | . . . . . . 4 5 7 5 5 1 . Treads 5 | . 26 15 14 11 5 . . . . . . . Leg 12 | . . . . . 10 25 28 15 15 10 16 20 Wheel 4 | . 1 12 14 16 3 2 . . . . 1 . Device 6 | . . . . . . 7 6 16 7 5 8 12 Storage 7 | . 14 14 14 14 5 5 5 5 5 5 4 8 Processor 5 | . . . . . 7 5 5 9 10 10 8 9 Hackware 3 | . . . . . 3 3 5 5 5 10 9 14 Protection 4 | . . . . 4 5 7 5 5 4 . . 3 Energy Gun 4 | . 10 12 14 14 2 . . . . . . . Ballistic Gun 4 | . 13 14 14 14 1 . . . . . . . Slashing Weapon 3 | . . . . . 2 5 5 5 5 5 4 4 Peak Build Rating 120 | 5 9 10 9 16 54 75 73 109 85 75 111 120 Average Rating 53 | 2 7 7 8 11 33 62 71 94 76 66 80 109 On Entrance 41 | . 5 8 7 9 16 34 73 73 67 60 75 111 Naked Turns . | . . . . . . . . . . . . . Heaviest Build 98 | 12 50 50 48 50 57 76 74 98 84 79 79 76 Greatest Support 110 | 16 40 40 16 26 83 105 110 110 95 45 105 105 Greatest Overweight (x) 7 | 2 1 3 2 3 3 2 . 1 1 7 7 1 Average Overweight (x) . | . . 2 2 1 . . . . . 1 1 . Largest Inventory Capacity 20 | 8 20 20 20 20 20 20 20 20 20 20 20 20 Average Capacity 19 | 7 16 20 20 20 20 20 20 20 20 20 20 20 Most Carried 20 | 8 9 10 11 20 20 20 20 20 20 20 20 20 Average Carried 16 | 5 8 8 9 15 17 18 18 17 19 19 18 19 Final Capacity 20 | 8 20 20 20 20 20 20 20 20 20 20 20 20 Final Carried 20 | 5 8 10 11 20 15 20 18 19 19 18 20 18 Class Distribution -------------------- 44% | Scavenger-Mutant 40% | Mutant 7% | Commander-Mutant 7% | Hacker-Mutant Dominant Class ---------------- Mutant | -10/Materials Mutant | -10/Subcaves Mutant | -7/Recycling Mutant | -7/Scraptown Scavenger-Mutant | -5/Factory Scavenger-Mutant | -5/Extension Scavenger-Mutant | -5/Cetus Scavenger-Mutant | -4/Factory Mutant | -4/Upper Caves Hacker-Mutant | -4/Upper Caves Scavenger-Mutant | -3/Research Hacker-Mutant | -3/Quarantine Resources | -11 -10 -10 -7 -7 -5 -5 -5 -4 -4 -4 -3 -3 ----------- Run | Yrd Mat Sub Rec Scr Fac Ext Cet Fac Upp Upp Res Qua Matter Collected 1699 | 129 250 50 72 . 313 398 39 238 120 15 75 . Remotely . | . . . . . . . . . . . . . Salvage Created 4708 | . 305 58 151 . 1077 1211 . 1371 186 39 258 52 Parts 225 | . 14 . 4 . 48 45 . 83 10 5 14 2 Haulers Intercepted 1 | . . . . . 1 . . . . . . . Recyclers Shooed 6 | . . . . . 6 . . . . . . . Parts Field Recycled . | . . . . . . . . . . . . . Retrieved Matter . | . . . . . . . . . . . . . Parts Self-Destructed 8 | . . . . . . . . . 8 . . . Prevented . | . . . . . . . . . . . . . Kills | -11 -10 -10 -7 -7 -5 -5 -5 -4 -4 -4 -3 -3 ------- Run | Yrd Mat Sub Rec Scr Fac Ext Cet Fac Upp Upp Res Qua Combat Hostiles Destroyed 52 | . 6 1 1 . 10 10 . 18 3 . 3 . Melee 39 | . . . . . 5 10 . 18 3 . 3 . Guns 10 | . 6 1 1 . 2 . . . . . . . AOE 3 | . . . . . 3 . . . . . . . Classes Destroyed 18 | . 3 1 2 . 6 1 . 3 . 1 . 1 Worker 5 | . . . . . 1 . . 4 . . . . Builder 3 | . 1 . . . . . . 1 . . 1 . Tunneler 1 | . 1 . . . . . . . . . . . Hauler 1 | . . . . . 1 . . . . . . . Recycler 9 | . . . 1 . 3 4 . 1 . . . . Operator 2 | . . . . . 2 . . . . . . . Watcher 2 | . . . . . 1 . . 1 . . . . Swarmer 1 | . . . . . . . . 1 . . . . Grunt 19 | . 6 . . . 4 4 . 2 . . 3 . Duelist 1 | . . . . . 1 . . . . . . . Researcher 1 | . . . . . . . . . . . . 1 Sentry 9 | . . . 1 . 1 5 . 2 . . . . Hunter 4 | . . . . . . . . 4 . . . . Programmer 15 | . . . . . 4 . . 8 3 . . . Heavy 1 | . . . . . . . . 1 . . . . Behemoth 1 | . . . . . . 1 . . . . . . Subdweller 1 | . . 1 . . . . . . . . . . Decomposer 1 | . . . . . . . . . 1 . . . Samaritan 1 | . . . . . . . . . . 1 . . Best Kill Streak 5 | . 2 1 2 . 5 3 . 3 1 . 3 1 Combat Bots Only 3 | . 2 1 1 . 3 2 . 3 1 . 2 . Max Kills in Single Turn 4 | . 1 1 1 . 4 2 . 1 1 1 1 1 Gunslinging . | . . . . . . . . . . . . . Exploded 3 | . . . . . 3 . . . . . . . Melee 2 | . . . . . 1 2 . 1 1 . 1 . Uniques/NPCs Destroyed . | . . . . . . . . . . . . . Combat | -11 -10 -10 -7 -7 -5 -5 -5 -4 -4 -4 -3 -3 -------- Run | Yrd Mat Sub Rec Scr Fac Ext Cet Fac Upp Upp Res Qua Hostile Shots Fired 1039 | . 45 5 45 . 138 109 37 310 83 . 133 134 Missed 315 | . 11 . 19 . 37 25 16 104 21 . 38 44 Hits 724 | . 34 5 26 . 101 84 21 206 62 . 95 90 Melee 20 | . . . . . 20 . . . . . . . Projectile 704 | . 34 5 26 . 81 84 21 206 62 . 95 90 AOE 2 | . . . . . . 1 . 1 . . . . Critical Strikes 49 | . . . . . 11 3 2 16 7 . 8 2 Actively Blocked 1 | . . . . . . 1 . . . . . . Damage Taken 14549 | . 474 97 206 . 3228 1938 525 4121 858 . 1824 1278 Core 2573 | . 60 19 26 . 590 178 32 477 122 . 746 323 Absorbed by Shields 692 | . . . . . . 117 37 228 190 . 120 . Redirected to Shielding 121 | . . . . . 53 68 . . . . . . Ignored by Resistances 246 | . . . . . . . . . 246 . . . Regen/Repaired (Parts) 1138 | . . . . . . . . 1138 . . . . Core Remaining (%) 56 | 100 . . . 58 . . 20 . . 47 . . Volleys Fired 75 | . 28 4 7 . 36 . . . . . . . Largest 2 | . 2 2 2 . 2 . . . . . . . Hottest 110 | . 73 73 73 . 110 . . . . . . . Shots Fired 141 | . 54 8 14 . 65 . . . . . . . Gun 141 | . 54 8 14 . 65 . . . . . . . Cannon . | . . . . . . . . . . . . . Launcher . | . . . . . . . . . . . . . Special . | . . . . . . . . . . . . . Kinetic 60 | . 26 4 7 . 23 . . . . . . . Thermal 81 | . 28 4 7 . 42 . . . . . . . Explosive . | . . . . . . . . . . . . . Electromagnetic . | . . . . . . . . . . . . . Robot Hit Streak 20 | . 12 13 20 . 14 . . . . . . . Robot Miss Streak 5 | . 3 . 1 . 5 . . . . . . . Penetration Max . | . . . . . . . . . . . . . Secondary Targets . | . . . . . . . . . . . . . Shots Hit Robots 317 | . 43 8 12 . 64 48 4 93 21 2 13 9 Core Hits 121 | . 16 2 5 . 27 22 2 36 4 1 5 1 Critical Kills . | . . . . . . . . . . . . . Critical Parts Destroyed 1 | . 1 . . . . . . . . . . . Critical Strikes 13 | . 2 2 1 . 2 . . 4 . . . 2 Burn 6 | . 1 2 1 . 2 . . . . . . . Destroy 1 | . 1 . . . . . . . . . . . Melee Attacks 301 | . 13 3 . . 26 58 4 131 26 2 23 15 Impact 16 | . 13 3 . . . . . . . . . . Slashing 285 | . . . . . 26 58 4 131 26 2 23 15 Piercing . | . . . . . . . . . . . . . Sneak Attacks 24 | . 2 . . . 3 4 . 11 1 2 1 . Combat Hostiles 2 | . . . . . . . . 2 . . . . Follow-up Attacks 3 | . . . . . . 1 . 2 . . . . Damage Inflicted 11598 | . 649 111 166 . 2230 2117 175 4092 969 150 561 378 Guns 1494 | . 554 111 166 . 663 . . . . . . . Cannons . | . . . . . . . . . . . . . Explosions 590 | . . . . . 590 . . . . . . . Melee 9506 | . 95 . . . 977 2117 175 4084 969 150 561 378 Ramming 8 | . . . . . . . . 8 . . . . Kinetic 659 | . 264 62 90 . 243 . . . . . . . Thermal 1425 | . 290 49 76 . 1010 . . . . . . . Explosive . | . . . . . . . . . . . . . Electromagnetic . | . . . . . . . . . . . . . Impact 95 | . 95 . . . . . . . . . . . Slashing 9411 | . . . . . 977 2117 175 4084 969 150 561 378 Piercing . | . . . . . . . . . . . . . Highest Corruption 33 | . . . . . 7 8 8 20 27 18 18 33 Average Corruption 11 | . . . . . 6 7 8 11 23 18 17 20 Corruption Purged 9 | . . . . . . . . . 9 . . . Corruption Blocked . | . . . . . . . . . . . . . Effects 145 | . . . . . 13 43 5 24 27 7 14 12 Message Errors 41 | . . . . . 4 8 1 9 8 3 4 4 Matter Fused 33 | . . . . . 2 13 2 4 4 1 5 2 Heat Flow Errors 11 | . . . . . 2 4 . 2 2 1 . . Energy Discharges 19 | . . . . . 2 2 1 4 5 1 2 2 Parts Rejected 5 | . . . . . 1 2 . 1 1 . . . Parts Fused 1 | . . . . . . . . 1 . . . . Data Loss (minor) 22 | . . . . . . 12 . 2 4 1 2 1 Data Loss (major) 7 | . . . . . 1 1 . . 2 . 1 2 Alerts 4 | . . . . . 1 1 1 1 . . . . Misdirections 2 | . . . . . . . . . 1 . . 1 Overload Shots . | . . . . . . . . . . . . . Overflow Damage 913 | . 23 . . . 294 21 . 378 84 69 36 8 Projectiles . | . . . . . . . . . . . . . Explosions 145 | . . . . . 145 . . . . . . . Melee 768 | . 23 . . . 149 21 . 378 84 69 36 8 Knockbacks . | . . . . . . . . . . . . . Impact . | . . . . . . . . . . . . . Kinetic . | . . . . . . . . . . . . . Secondary . | . . . . . . . . . . . . . Self-Inflicted Damage 245 | . . . . . 245 . . . . . . . Shots 3 | . . . . . 3 . . . . . . . Rammed . | . . . . . . . . . . . . . Targets Rammed 1 | . . . . . . . . 1 . . . . Kicked 1 | . . . . . . . . 1 . . . . Crushed . | . . . . . . . . . . . . . Highest Temperature 256 | . 191 . 138 . 205 230 . 108 143 256 . . Average Temperature 68 | . 62 . 81 . 36 99 . 38 68 134 . . Received Heat Transfer 2080 | . 261 30 66 . 333 496 81 242 99 . 472 . Effects 1 | . . . . . . 1 . . . . . . Interference 1 | . . . . . . 1 . . . . . . Siege Activations . | . . . . . . . . . . . . . Martial Activations . | . . . . . . . . . . . . . Shielding Activations . | . . . . . . . . . . . . . Robots Disrupted 2 | . . . . . . . . 2 . . . . Combat Hostiles 2 | . . . . . . . . 2 . . . . Robots Corrupted 1 | . 1 . . . . . . . . . . . Combat Hostiles . | . . . . . . . . . . . . . Parts Fried 2 | . 1 . . . . . . . . . 1 . Impact Corruptions 2 | . 2 . . . . . . . . . . . Robots Melted . | . . . . . . . . . . . . . Combat Hostiles . | . . . . . . . . . . . . . Parts Melted 7 | . 1 1 2 . 2 . . . 1 . . . Heat Transferred 3016 | . 925 296 296 . 1499 . . . . . . . Parts Sabotaged . | . . . . . . . . . . . . . Parts Stolen . | . . . . . . . . . . . . . Parts Stripped . | . . . . . . . . . . . . . Power Chain Reactions . | . . . . . . . . . . . . . Alert | -11 -10 -10 -7 -7 -5 -5 -5 -4 -4 -4 -3 -3 ------- Run | Yrd Mat Sub Rec Scr Fac Ext Cet Fac Upp Upp Res Qua Maximum Alert Level 1 | . . . . . 1 . . . . . 1 . Low Security (%) 94 | 100 100 . 100 . 98 100 100 100 . . 34 100 Level 1 5 | . . . . . 1 . . . . . 65 . Level 2 . | . . . . . . . . . . . . . Level 3 . | . . . . . . . . . . . . . Level 4 . | . . . . . . . . . . . . . Level 5 . | . . . . . . . . . . . . . High Security . | . . . . . . . . . . . . . Max Security . | . . . . . . . . . . . . . Peak Influence 336 | . 71 . 15 . 206 161 145 175 . . 336 125 Initial 116 | . . . . . . 80 74 42 . . . 116 Average 65 | . 18 . 1 . 26 58 103 71 . . 190 77 Influence Increases 2917 | . 178 . 25 . 484 725 131 704 85 . 443 142 Destroy 0b10 Robot/C 1580 | . 120 . 20 . 200 420 80 400 60 . 240 40 Destroy 0b10 Robot/NC 175 | . 10 . 5 . 40 35 5 50 5 . 20 5 Destroy Leader 256 | . 30 . . . 44 34 . 96 20 . 30 2 Allied During Kill 337 | . . . . . . 195 42 34 . . 62 4 Successful Hack 21 | . . . . . . 21 . . . . . . Disable Machine 135 | . 15 . . . 75 . . 15 . . 30 . Destroy Structure 203 | . 3 . . . 80 20 4 34 . . 46 16 Lose Combat Pursuer 210 | . . . . . 45 . . 75 . . 15 75 Influence Decreases 2917 | . 178 . 25 . 319 757 189 662 202 . 236 349 Entered New Map 313 | . . . . . . 85 59 33 45 . . 91 Time Decay 1671 | . 173 . 25 . 165 430 90 377 147 . 154 110 Lost Part 633 | . 5 . . . 154 82 40 192 10 . 62 88 Lost Ally 300 | . . . . . . 160 . 60 . . 20 60 Squads Dispatched 15 | . . . . . 3 3 . 5 . . 2 2 Investigation 1 | . . . . . . 1 . . . . . . Extermination 5 | . . . . . 1 . . 3 . . 1 . Reinforcement 9 | . . . . . 2 2 . 2 . . 1 2 Assault . | . . . . . . . . . . . . . Garrison . | . . . . . . . . . . . . . Intercept . | . . . . . . . . . . . . . Searches Triggered . | . . . . . . . . . . . . . Construction Impeded 2 | . . . . . . 1 . . . . 1 . Haulers Reinforced . | . . . . . . . . . . . . . Active Scanning Responses . | . . . . . . . . . . . . . Cargo Convoy Interrupts . | . . . . . . . . . . . . . Stealth | -11 -10 -10 -7 -7 -5 -5 -5 -4 -4 -4 -3 -3 --------- Run | Yrd Mat Sub Rec Scr Fac Ext Cet Fac Upp Upp Res Qua Distress Signals 8 | . . . . . 2 4 1 . . . 1 . Communications Jammed . | . . . . . . . . . . . . . Distress Signals . | . . . . . . . . . . . . . Times Spotted 144 | . 7 1 1 . 28 32 5 36 7 . 17 10 Peak Tracking Total 12 | . 2 1 1 . 11 4 5 7 4 . 12 6 Tactical Retreats 10 | . . . . . 3 . . 3 . . 1 3 Traps | -11 -10 -10 -7 -7 -5 -5 -5 -4 -4 -4 -3 -3 ------- Run | Yrd Mat Sub Rec Scr Fac Ext Cet Fac Upp Upp Res Qua Traps Triggered 3 | . . . . . 1 . . 2 . . . . Indirectly . | . . . . . . . . . . . . . Trap Hack Attempts . | . . . . . . . . . . . . . Triggered . | . . . . . . . . . . . . . Disarmed . | . . . . . . . . . . . . . Reprogrammed . | . . . . . . . . . . . . . Reused . | . . . . . . . . . . . . . Traps Extracted . | . . . . . . . . . . . . . Installed . | . . . . . . . . . . . . . Triggered . | . . . . . . . . . . . . . Machines | -11 -10 -10 -7 -7 -5 -5 -5 -4 -4 -4 -3 -3 ---------- Run | Yrd Mat Sub Rec Scr Fac Ext Cet Fac Upp Upp Res Qua Machines Disabled 9 | . 1 . . . 5 . . 1 . . 2 . Max in Single Turn 5 | . 1 . . . 5 . . 1 . . 1 . Energy Cycler 1 | . . . . . . 1 . . . . . . Machines Repaired . | . . . . . . . . . . . . . Machines Dismantled . | . . . . . . . . . . . . . Machines Sabotaged . | . . . . . . . . . . . . . Overloaded Fab Kills . | . . . . . . . . . . . . . Hacking | -11 -10 -10 -7 -7 -5 -5 -5 -4 -4 -4 -3 -3 --------- Run | Yrd Mat Sub Rec Scr Fac Ext Cet Fac Upp Upp Res Qua Machines Accessed 14 | . . . . 4 2 3 . 4 . . . 1 Terminals 5 | . . . . . 2 2 . 1 . . . . Fabricators 1 | . . . . . . . . 1 . . . . Repair Stations 2 | . . . . . . 1 . 1 . . . . Recycling Units . | . . . . . . . . . . . . . Scanalyzers . | . . . . . . . . . . . . . Garrison Access 2 | . . . . . . . . 1 . . . 1 Total Hacks 45 | . . . . 26 2 6 . 8 . . . 3 Successful 32 | . . . . 26 2 2 . 2 . . . . Failed 13 | . . . . . . 4 . 6 . . . 3 Catastrophic 2 | . . . . . . . . 1 . . . 1 Database Lockouts . | . . . . . . . . . . . . . Manual 1 | . . . . . . . . 1 . . . . Terminals 7 | . . . . . 2 4 . 1 . . . . Fabricators 1 | . . . . . . . . 1 . . . . Repair Stations 6 | . . . . . . 2 . 4 . . . . Recycling Units . | . . . . . . . . . . . . . Scanalyzers . | . . . . . . . . . . . . . Garrison Access 5 | . . . . . . . . 2 . . . 3 Terminal Hacks 29 | . . . . 26 2 1 . . . . . . Record 21 | . . . . 21 . . . . . . . . Robot Analysis 4 | . . . . 4 . . . . . . . . Open Door 3 | . . . . 1 1 1 . . . . . . Recall Reinforcements 1 | . . . . . 1 . . . . . . . Fabricator Hacks . | . . . . . . . . . . . . . Repair Station Hacks 3 | . . . . . . 1 . 2 . . . . Scan Component 2 | . . . . . . 1 . 1 . . . . Repair 1 | . . . . . . . . 1 . . . . Recycling Unit Hacks . | . . . . . . . . . . . . . Scanalyzer . | . . . . . . . . . . . . . Garrison Access Hacks . | . . . . . . . . . . . . . Unauthorized Hacks . | . . . . . . . . . . . . . Terminals . | . . . . . . . . . . . . . Fabricators . | . . . . . . . . . . . . . Repair Stations . | . . . . . . . . . . . . . Recycling Units . | . . . . . . . . . . . . . Scanalyzers . | . . . . . . . . . . . . . Garrison Access . | . . . . . . . . . . . . . Data Cores Recovered . | . . . . . . . . . . . . . Used . | . . . . . . . . . . . . . Hacking Detections 8 | . . . . . 1 2 . 4 . . . 1 Full Trace Events 1 | . . . . . . 1 . . . . . . Feedback Events . | . . . . . . . . . . . . . Feedback Blocked . | . . . . . . . . . . . . . Robot Schematics Acquired 1 | . . . . . . . . . . . . 1 Robots Built . | . . . . . . . . . . . . . Authchips . | . . . . . . . . . . . . . Time . | . . . . . . . . . . . . . Total Robot Build Rating . | . . . . . . . . . . . . . Part Schematics Acquired 1 | . . . . . . . . . . . . 1 Parts Built . | . . . . . . . . . . . . . Authchips . | . . . . . . . . . . . . . Time . | . . . . . . . . . . . . . Total Part Build Rating . | . . . . . . . . . . . . . Parts Repaired 1 | . . . . . . . . 1 . . . . Time 56 | . . . . . . . . 56 . . . . Parts Recycled . | . . . . . . . . . . . . . Recycled Matter . | . . . . . . . . . . . . . Retrieved Matter . | . . . . . . . . . . . . . Retrieved Components . | . . . . . . . . . . . . . Parts Scanalyzed . | . . . . . . . . . . . . . Part Schematics Acquired . | . . . . . . . . . . . . . Parts Damaged . | . . . . . . . . . . . . . Bothacking | -11 -10 -10 -7 -7 -5 -5 -5 -4 -4 -4 -3 -3 ------------ Run | Yrd Mat Sub Rec Scr Fac Ext Cet Fac Upp Upp Res Qua Used RIF Installer . | . . . . . . . . . . . . . Robots Hacked . | . . . . . . . . . . . . . Non-combat . | . . . . . . . . . . . . . Combat . | . . . . . . . . . . . . . Robot Hacks Applied . | . . . . . . . . . . . . . Relay Couplers Released . | . . . . . . . . . . . . . Fabnet Peak Effective % . | . . . . . . . . . . . . . Robots Rewired 18 | . . . . . . 17 . 1 . . . . Allies Hacked . | . . . . . . . . . . . . . Hacks Repelled . | . . . . . . . . . . . . . Allies | -11 -10 -10 -7 -7 -5 -5 -5 -4 -4 -4 -3 -3 -------- Run | Yrd Mat Sub Rec Scr Fac Ext Cet Fac Upp Upp Res Qua Total Allies 27 | . . . . . . 21 . 1 . . 5 . Largest Group 16 | . . . . . . 16 6 6 . . 4 3 Highest-Rated Group 465 | . . . . . . 465 188 188 . . 314 237 Highest-Rated Ally 81 | . . . . . . 39 39 49 . . 81 81 Total Orders . | . . . . . . . . . . . . . Ally Attacks 253 | . . . . . . 141 28 34 . . 41 9 Total Damage 6469 | . . . . . . 2647 569 581 . . 2219 453 Kills 43 | . . . . . . 18 5 5 . . 13 2 Allies Corrupted 2 | . . . . . . 2 . . . . . . Allies Melted . | . . . . . . . . . . . . . Intel | -11 -10 -10 -7 -7 -5 -5 -5 -4 -4 -4 -3 -3 ------- Run | Yrd Mat Sub Rec Scr Fac Ext Cet Fac Upp Upp Res Qua Active Infowar (turns) 1502 | . . . . . . . . 1028 . . 244 230 Sensors 1502 | . . . . . . . . 1028 . . 244 230 Robot Analysis Total 4 | . . . . 4 . . . . . . . . Derelict Logs Recovered 1 | . . . . 1 . . . . . . . . Drone Launches . | . . . . . . . . . . . . . Drone Recoveries . | . . . . . . . . . . . . . Exploration | -11 -10 -10 -7 -7 -5 -5 -5 -4 -4 -4 -3 -3 ------------- Run | Yrd Mat Sub Rec Scr Fac Ext Cet Fac Upp Upp Res Qua Turns Passed 7504 | 45 520 381 197 1201 587 1596 185 1417 551 136 458 230 Spaces Moved 4231 | 33 164 243 127 937 294 895 131 707 258 67 244 131 Core 23 | 23 . . . . . . . . . . . . Treads 146 | . 136 8 . . . . . . . . 2 . Legs 2507 | . . . . . 184 832 131 707 258 66 198 131 Wheels 1555 | 10 28 235 127 937 110 63 . . . 1 44 . Hover . | . . . . . . . . . . . . . Flight . | . . . . . . . . . . . . . Fastest Speed 50 | 50 100 130 130 105 105 120 120 120 120 185 120 120 Average Speed 132 | 96 211 143 130 125 117 120 120 126 172 189 135 122 Slowest Speed 260 | 150 240 240 130 145 250 190 120 220 190 190 260 190 Overloaded Moves . | . . . . . . . . . . . . . Propulsion Burnouts . | . . . . . . . . . . . . . Robots Hopped . | . . . . . . . . . . . . . Potential Cave-ins 2 | . . . . . 2 . . . . . . . Cave-ins Triggered . | . . . . . . . . . . . . . Exploration Rate (%) 32 | 3 32 29 34 74 10 91 48 20 50 10 7 17 Regions Visited 12 Branch Regions 8 Pre-discovered Areas 4 | . . . . 4 . . . . . . . . Known Exits Taken 7 | . . . . 1 1 . 1 1 1 1 1 . Unknown Exits Taken 5 | 1 1 1 1 . . 1 . . . . . . Scrap Searched 7 | . . . . 5 . . . . 2 . . . Spaces Dug 32 | . 2 1 . . 5 1 . 15 . . 7 1 Terrain Destroyed 73 | . 2 1 . . 46 1 . 15 . . 7 1 Melee 32 | . 2 1 . . 5 1 . 15 . . 7 1 Projectile . | . . . . . . . . . . . . . AOE 41 | . . . . . 41 . . . . . . . Terrain Rammed . | . . . . . . . . . . . . . Walls Destroyed . | . . . . . . . . . . . . . Machines Disabled . | . . . . . . . . . . . . . Actions | -11 -10 -10 -7 -7 -5 -5 -5 -4 -4 -4 -3 -3 --------- Run | Yrd Mat Sub Rec Scr Fac Ext Cet Fac Upp Upp Res Qua Total 5544 | 45 260 260 144 962 431 1331 153 1042 328 73 336 179 Wait 553 | . 43 2 7 . 18 228 15 145 28 . 41 26 Move 4219 | 32 163 242 126 936 293 894 130 706 257 66 243 131 Hop . | . . . . . . . . . . . . . Pick Up 126 | 8 5 2 2 16 22 23 1 23 6 2 14 2 Fast Attach 23 | 2 1 . . 1 3 5 . 5 2 . 3 1 Attach 101 | 3 2 1 1 . 27 20 3 20 7 3 12 2 Detach 10 | . . 1 . . 2 4 . 2 1 . . . Swap 24 | . 4 5 1 3 1 8 . 2 . . . . Drop 28 | . 1 . . 6 3 9 . 6 1 . . 2 Fire 75 | . 28 4 7 . 36 . . . . . . . Melee 298 | . 13 3 . . 26 57 4 129 26 2 23 15 Ram . | . . . . . . . . . . . . . Kick 1 | . . . . . . . . 1 . . . . Crush . | . . . . . . . . . . . . . Escape Stasis . | . . . . . . . . . . . . . Rewire 86 | . . . . . . 83 . 3 . . . . Trap . | . . . . . . . . . . . . . Miscellaneous . | . . . . . . . . . . . . . Route ------- -11/Scrapyard -10/Materials (discovered 4 exits: [*Mat x2] / [*Min] / [*Sub]) -10/Subcaves -7/Recycling -7/Scraptown (discovered 2 exits: *Fac x2) -5/Factory (discovered 7 exits: *Fac x3 / *Upp x2 / *Ext x2) -5/Extension (discovered 2 exits: *Fac / *Cet) -5/Cetus -4/Factory (discovered 4 exits: Res x3 / *Upp) -4/Upper Caves -4/Upper Caves -3/Research (discovered 2 exits: *Res / *Qua) -3/Quarantine History --------- Turn | Location | Event 6 | -11/Scrapyard | Discovered new exit (range 16) 46 | -11/Scrapyard | Entered Materials 276 | -10/Materials | Discovered new exit (range 10) 309 | -10/Materials | Build established: Mutant 320 | -10/Materials | Discovered new exit (range 16) 461 | -10/Materials | Discovered new exit (range 16) 561 | -10/Materials | Discovered new exit (range 2) 566 | -10/Materials | Entered Subcaves 753 | -10/Subcaves | Shifting Twisted Machinery released Sub. Laser 756 | -10/Subcaves | Shifting Twisted Machinery released Flamer 902 | -10/Subcaves | Visited triangular shrine 910 | -10/Subcaves | Found Prototype Device 920 | -10/Subcaves | Identified V3-11A's Pendant 942 | -10/Subcaves | Discovered new exit (range 3) 947 | -10/Subcaves | Entered Recycling 1111 | -7/Recycling | Scanned before Scraplab entrance 1131 | -7/Recycling | Entered Scraplab 1141 | -7/Recycling | Discovered new exit (range 3) 1144 | -7/Recycling | Entered Scraptown 1225 | -7/Scraptown | Delivered V3-11A's Pendant to T0-NE2 in exchange for information 1366 | -7/Scraptown | Scanned Subdweller tech in exchange for log data 1370 | -7/Scraptown | Learned Factory garrison access intel 1451 | -7/Scraptown | Discovered new exit (range 11) 1627 | -7/Scraptown | Visited Bundlers 1758 | -7/Scraptown | Visited UFD Registry 1758 | -7/Scraptown | Registered with UFD as "Cargodriver" 1779 | -7/Scraptown | Visited Fellowship of the Rings 1940 | -7/Scraptown | Visited Junk Repository 2045 | -7/Scraptown | Visited Analyses Database 2103 | -7/Scraptown | Visited Cartography Club 2138 | -7/Scraptown | Found Surveybot 17 Chip 2176 | -7/Scraptown | Found Deep Structural Scanner 2186 | -7/Scraptown | Learned location of Cetus (-5) 2186 | -7/Scraptown | Learned location of Hub_04(d) (-5) 2186 | -7/Scraptown | Learned location of Armory (-4) 2186 | -7/Scraptown | Learned 8 Factory zone layouts 2186 | -7/Scraptown | Learned 8 Research zone layouts 2186 | -7/Scraptown | Learned 16 Factory zone layouts 2186 | -7/Scraptown | Learned 12 Research zone layouts 2186 | -7/Scraptown | Learned 4 Access zone layouts 2186 | -7/Scraptown | Learned 8 Access zone layouts 2186 | -7/Scraptown | Learned 8 Upper Caves zone layouts 2186 | -7/Scraptown | Learned 12 Proximity Caves zone layouts 2186 | -7/Scraptown | Learned Factory emergency access door positions 2186 | -7/Scraptown | Learned location of 3 exits from Factory 2186 | -7/Scraptown | Learned location of 2 exits from Upper Caves 2186 | -7/Scraptown | Identified exit to Factory 2228 | -7/Scraptown | Visited Abandonware Association 2236 | -7/Scraptown | Learned abandonware demo "OVRCLOCK.EXE" 2241 | -7/Scraptown | Learned abandonware demo "KABOOM.EXE" 2241 | -7/Scraptown | Learned abandonware demo "POISON.EXE" 2267 | -7/Scraptown | Visited Sword Containment 2345 | -7/Scraptown | Entered Factory 2345 | -5/Factory | Evolved 10 slots: Propulsion x3, Utility x7 2346 | -5/Factory | Identified exit to Extension 2347 | -5/Factory | Identified exit to Factory 2348 | -5/Factory | Identified exit to Upper Caves 2350 | -5/Factory | Loaded intel: 3 garrison access locations 2644 | -5/Factory | Lost 13 parts (1p6n2u4w) 2826 | -5/Factory | Build established: Scavenger-Mutant 2908 | -5/Factory | Core integrity fell below 50% 2932 | -5/Factory | Entered Extension 2946 | -5/Extension | Lost 8 parts (1p4n3u) 3701 | -5/Extension | Rescued a captive Derelict 3702 | -5/Extension | Rescued a captive Derelict 3783 | -5/Extension | Build established: Commander-Mutant 3909 | -5/Extension | Spotted B-75 Beast 3934 | -5/Extension | Spotted B-75 Beast 3936 | -5/Extension | Allies destroyed B-75 Beast 3954 | -5/Extension | Destroyed B-75 Beast 3981 | -5/Extension | Lost 6 allies 4042 | -5/Extension | Energy Cycler disabled 4042 | -5/Extension | Rescued a captive Derelict 4042 | -5/Extension | Rescued a captive Derelict 4043 | -5/Extension | Rescued a captive Derelict 4076 | -5/Extension | Lost 3 parts (1n2u) 4083 | -5/Extension | Lost 8 allies 4347 | -5/Extension | Build established: Scavenger-Mutant 4430 | -5/Extension | Discovered exit to Factory (range 10) 4431 | -5/Extension | Discovered new exit (range 6) 4528 | -5/Extension | Entered Cetus 4528 | -5/Cetus | Accompanied by 6 allies 4543 | -5/Cetus | Spotted Cetus Guard 4544 | -5/Cetus | Spotted Cetus Guard 4545 | -5/Cetus | Spotted Cetus Guard 4546 | -5/Cetus | Spotted Cetus Guard 4562 | -5/Cetus | Allies destroyed Cetus Guard 4565 | -5/Cetus | Allies destroyed Cetus Guard 4570 | -5/Cetus | Allies destroyed Cetus Guard 4571 | -5/Cetus | Allies destroyed Cetus Guard 4601 | -5/Cetus | Lost 4 parts (2n2u) 4681 | -5/Cetus | Discovered exit to Factory (range 15) 4713 | -5/Cetus | Entered Factory 4713 | -4/Factory | Accompanied by 6 allies 4713 | -4/Factory | Evolved 2 slots: Power x1, Utility x1 4714 | -4/Factory | Identified exit to Research 4806 | -4/Factory | Repaired Med. Armored Exoskeleton 4908 | -4/Factory | Lost 6 parts (1p4n1u) 5185 | -4/Factory | Found Hvy. Insulated Plating 5356 | -4/Factory | Found Prototype Hackware 5692 | -4/Factory | System corruption reached 10% 6023 | -4/Factory | Lost 4 parts (1p3u) 6100 | -4/Factory | Discovered new exit (range 7) 6129 | -4/Factory | Identified exit to Upper Caves 6130 | -4/Factory | Entered Upper Caves 6131 | -4/Upper Caves | Identified exit to Upper Caves 6150 | -4/Upper Caves | Lost 3 parts (1p1n1u) 6526 | -4/Upper Caves | Build established: Mutant 6541 | -4/Upper Caves | Encountered a Warlord checkpoint 6680 | -4/Upper Caves | Core integrity fell below 50% 6681 | -4/Upper Caves | Entered another Upper Caves area 6711 | -4/Upper Caves | Lost 4 parts (3n1u) 6753 | -4/Upper Caves | Prototype Device suddenly appears! 6764 | -4/Upper Caves | Found Prototype Device 6815 | -4/Upper Caves | Identified Amulet of Y3-NDR 6817 | -4/Upper Caves | Entered Research 6817 | -3/Research | Evolved 2 slots: Propulsion x1, Utility x1 6818 | -3/Research | Identified exit to Quarantine 6960 | -3/Research | Joined by bewildered Wizard 6965 | -3/Research | Joined by bewildered Wizard 6965 | -3/Research | Joined by bewildered Wizard 6973 | -3/Research | Core integrity fell below 50% 6981 | -3/Research | System corruption reached 10% 7002 | -3/Research | Lost 10 parts (2p6n2u) 7038 | -3/Research | Joined by bewildered Wizard 7039 | -3/Research | Joined by bewildered Wizard 7194 | -3/Research | Discovered new exit (range 5) 7202 | -3/Research | Identified exit to Research 7226 | -3/Research | Identified Exp. System Shield 7275 | -3/Research | Entered Quarantine 7275 | -3/Quarantine | Accompanied by 3 allies 7419 | -3/Quarantine | Lost 3 allies 7465 | -3/Quarantine | Scanned by Researcher 7467 | -3/Quarantine | System corruption reached 30% 7505 | -3/Quarantine | Core integrity fell below 20% 7505 | -3/Quarantine | Self-destructed Last Messages --------------- Imp. Medium Armor Plating destroyed. Penetrated by Slug. Slug penetrates Wall. Autopsy Lab disabled. H-77 Assassin Coil Gun severed. Flexi-carbon Leg destroyed. System corrupted: Substantial component data lost. Flexi-carbon Leg destroyed. Slug penetrates Wall. Adv. Cryofiber Web destroyed. Slug penetrates H-77 Assassin. Wall collapses. Flexi-carbon Leg destroyed. Mic. Antimatter Reactor destroyed. Destroyed Lgt. Antimatter Reactor. Critical hit (Destroy). Companion Sword destroyed. Companion Sword: "Time to go to the place where all swords go after they die..." Map ----- +----------------------------------------------------+ | | | | | | | | | | | | | | | | | | | | | | | | | | | | | | | | | | | | | ?????????????????????????????????????????????????? | | #????????????????????????????????????????????????? | | "T???????????????????????????????????????????????? | | ???????????????????????????????????????????????? | | ?????#????????????????##########???????????????? | | ""??? #????????????#####$ #???????????????? | | ""?? ############## =hh%= #???????????????? | | """ # """ + #;@ #???????????????? | | """ # "T" """ #### ## """ #???????????????? | | """ # " " """ #??# ## ""&" #???????????????? | | """ # """ #??# ## """" #???????????????? | | """ # #??# ## #???????????????? | | # ! | #??# ## """" #???????????????? | | # #??# ## ""&" #???????????????? | | # #??#u ##u """ #???????????????? | | #+######+####k####### ## ????????????????? | | # ??????????????????? | | g # ??????????????????? | | % g + ?????????????????? | | g # ?????????????????? | | #########"############ ?????????????????? | | # # #?????????? ?????????????????? | | # """ ""###?????????? ???????????????????? | | + """ ""#????????????###?????????????????????? | | # """ ""#????????????????????????????????????? | | # S#????????????????????????????????????? | | # """ ""#????????????????????????????????????? | | # """ ""#????????????????????????????????????? | | # """ ""#????????????????????????????????????? | | # #????????????????????????????????????? | | ##########????????????????????????????????????? | | #?????????????????????????????????????????????? | +----------------------------------------------------+ Best States ------------- Heat Dissipation 70 Energy Generation 35 Energy Capacity 820 Matter Stores 300 Matter Capacity 300 Sight Range 16 Robot Scan Range 16 Terrain Scan Density 10 Base Temperature (-) 200 Armor Coverage 600 Resistance: EM 30 Core Shielding 20 Utility Shielding 66 Weapon Shielding 66 Phase Shifting 10 Evasion (%) 67 Melee Accuracy 19 Recoil Reduction 2 Offensive Hacking 12 Defensive Hacking 28 Item Schematics ----------------- Exp. Coolant Injector | -3/Quarantine | Archive Robot Schematics ------------------ B-60 Warrior | -3/Quarantine | Archive Fabricated ------------ Nothing Repaired ---------- Med. Armored Exoskeleton | 12% | -4/Factory Alien Tech Used ----------------- None Achievements -------------- None Challenges ------------ None Game ------ Seed TechSalvagingAutobeam Manual? 1 Play Time 01:07:54 Cumulative 238.1 hours Start 2025.09.19 @ 14:05:21 End 2025.09.19 @ 15:11:17 Sessions 1 Manual Loads 0 Difficulty Rogue Special Mode None Game No. 211 Rogue 211 Adventurer 0 Explorer 0 Win Type - Total 13 Types 7/0/2/2/1/0/0/0/0/1 Lore% 93 Gallery% 86 Achievement% 75 Wizard Run 0 Options --------- Layout 1 ASCII 0 Keyboard 0 Movement Numpad Keybinds 0 Fullscreen 1 Font 24/Proggy Map View 50x35 Zoom Use 0% Tactical HUD 0 Map Filters NONE Filters NONE Steam 1 RUN: a6279e19-6b8d-4e9e-b410-7cc071f46280